[Event "Late-Titled-Tuesday-Blitz-October-24-2023"]
[Site "Chess.com"]
[Date "2023.10.24"]
[Round "5"]
[White "KNVB"]
[Black "Cayse"]
[Result "0-1"]
[WhiteElo "2663"]
[BlackElo "2882"]
[TimeControl "180+1"]
[EndTime "14:55:07 PDT"]
[Termination "Cayse won by checkmate"]

1. d4 {[%clk 0:03:00.9]} 1... d5 {[%clk 0:02:59.8]} 2. Nc3 {[%clk 0:03:00.9]}
2... Nf6 {[%clk 0:02:58.1]} 3. Bf4 {[%clk 0:03:00.8]} 3... e6 {[%clk 0:02:55.5]}
4. Nb5 {[%clk 0:03:00.3]} 4... Na6 {[%clk 0:02:55.5]} 5. e3 {[%clk 0:03:00.2]}
5... Be7 {[%clk 0:02:54.9]} 6. Nf3 {[%clk 0:02:59.7]} 6... O-O {[%clk
0:02:53.9]} 7. Ne5 {[%clk 0:03:00.1]} 7... Ne4 {[%clk 0:02:53]} 8. f3 {[%clk
0:02:34.1]} 8... Nd6 {[%clk 0:02:42.3]} 9. Nc3 {[%clk 0:02:20]} 9... Nb8 {[%clk
0:02:27.9]} 10. e4 {[%clk 0:01:56.6]} 10... Bg5 {[%clk 0:02:05.9]} 11. Qd2
{[%clk 0:01:33.3]} 11... Bxf4 {[%clk 0:02:02.8]} 12. Qxf4 {[%clk 0:01:34.2]}
12... f6 {[%clk 0:01:52.6]} 13. Nd3 {[%clk 0:01:32.7]} 13... dxe4 {[%clk
0:01:51.8]} 14. fxe4 {[%clk 0:01:29]} 14... Nc6 {[%clk 0:01:51.3]} 15. Qf2
{[%clk 0:01:06.6]} 15... e5 {[%clk 0:01:48.2]} 16. d5 {[%clk 0:01:03.5]} 16...
Nd4 {[%clk 0:01:48.2]} 17. O-O-O {[%clk 0:00:59.5]} 17... Bg4 {[%clk 0:01:47.8]}
18. Re1 {[%clk 0:00:55.4]} 18... c6 {[%clk 0:01:29.2]} 19. h3 {[%clk 0:00:42.4]}
19... Bd7 {[%clk 0:01:28.9]} 20. g4 {[%clk 0:00:32.6]} 20... Rc8 {[%clk
0:01:28.6]} 21. Bg2 {[%clk 0:00:28.1]} 21... cxd5 {[%clk 0:01:28.7]} 22. exd5
{[%clk 0:00:26.3]} 22... N6b5 {[%clk 0:01:28.6]} 23. Qd2 {[%clk 0:00:05.9]}
23... Qa5 {[%clk 0:01:20.4]} 24. d6 {[%clk 0:00:02]} 24... Rxc3 {[%clk
0:01:16.6]} 25. bxc3 {[%clk 0:00:01.8]} 25... Qa3+ {[%clk 0:01:12.8]} 26. Nb2
{[%clk 0:00:02.2]} 26... Nxc3 {[%clk 0:01:13.1]} 27. Re3 {[%clk 0:00:02.5]}
27... Rc8 {[%clk 0:01:06]} 28. Bd5+ {[%clk 0:00:02.7]} 28... Kh8 {[%clk
0:00:59.9]} 29. Bb3 {[%clk 0:00:03.3]} 29... Nxb3+ {[%clk 0:00:53.3]} 30. cxb3
{[%clk 0:00:03.4]} 30... Nd5+ {[%clk 0:00:52.7]} 31. Kb1 {[%clk 0:00:03.2]}
31... Nxe3 {[%clk 0:00:52.7]} 32. Qxe3 {[%clk 0:00:03.8]} 32... Qxd6 {[%clk
0:00:52.9]} 33. Rd1 {[%clk 0:00:03.4]} 33... Qc6 {[%clk 0:00:51.8]} 34. Qxa7
{[%clk 0:00:01.7]} 34... Qc2+ {[%clk 0:00:50.9]} 35. Ka1 {[%clk 0:00:02.2]}
35... Qc1+ {[%clk 0:00:51.3]} 36. Rxc1 {[%clk 0:00:02.5]} 36... Rxc1# {[%clk
0:00:51.6]} 0-1

[Event "Late-Titled-Tuesday-Blitz-October-24-2023"]
[Site "Chess.com"]
[Date "2023.10.24"]
[Round "5"]
[White "carloseduar100"]
[Black "GlavkonVVS"]
[Result "0-1"]
[WhiteElo "2297"]
[BlackElo "2526"]
[TimeControl "180+1"]
[EndTime "14:55:11 PDT"]
[Termination "GlavkonVVS won on time"]

1. e4 {[%clk 0:02:50.7]} 1... c5 {[%clk 0:02:59.8]} 2. Nf3 {[%clk 0:02:50.4]}
2... d6 {[%clk 0:02:59.2]} 3. Nc3 {[%clk 0:02:51]} 3... Nc6 {[%clk 0:02:58.2]}
4. g3 {[%clk 0:02:51.1]} 4... g6 {[%clk 0:02:58.2]} 5. Bg2 {[%clk 0:02:51.7]}
5... Bg7 {[%clk 0:02:58.8]} 6. O-O {[%clk 0:02:52.5]} 6... e6 {[%clk 0:02:57.7]}
7. d3 {[%clk 0:02:53.2]} 7... Nge7 {[%clk 0:02:57.3]} 8. Bg5 {[%clk 0:02:53.2]}
8... h6 {[%clk 0:02:56.6]} 9. Be3 {[%clk 0:02:52.9]} 9... O-O {[%clk 0:02:55.2]}
10. Qd2 {[%clk 0:02:53.2]} 10... g5 {[%clk 0:02:55.3]} 11. h4 {[%clk 0:02:52]}
11... g4 {[%clk 0:02:54.8]} 12. Bxh6 {[%clk 0:02:52.1]} 12... gxf3 {[%clk
0:02:52.8]} 13. Bxf3 {[%clk 0:02:52.4]} 13... Nd4 {[%clk 0:02:44.2]} 14. Bg2
{[%clk 0:02:48.9]} 14... f5 {[%clk 0:02:27.1]} 15. Qg5 {[%clk 0:02:31.2]} 15...
Rf7 {[%clk 0:02:24]} 16. Rae1 {[%clk 0:01:55.2]} 16... Qf8 {[%clk 0:02:22.7]}
17. exf5 {[%clk 0:01:36.5]} 17... Nexf5 {[%clk 0:02:21.2]} 18. Bxg7 {[%clk
0:01:36.7]} 18... Rxg7 {[%clk 0:02:20.4]} 19. Qd2 {[%clk 0:01:29.2]} 19... Bd7
{[%clk 0:02:14.6]} 20. Ne4 {[%clk 0:01:27.7]} 20... Nxh4 {[%clk 0:02:00]} 21.
Ng5 {[%clk 0:00:34.9]} 21... Nxg2 {[%clk 0:01:46]} 22. Kxg2 {[%clk 0:00:32.5]}
22... Qf5 {[%clk 0:01:42.2]} 23. f4 {[%clk 0:00:27.8]} 23... Bc6+ {[%clk
0:01:41.7]} 24. Kf2 {[%clk 0:00:28.3]} 24... Rxg5 {[%clk 0:01:39.9]} 25. c3
{[%clk 0:00:23.8]} 25... Nb5 {[%clk 0:01:17]} 26. Rxe6 {[%clk 0:00:13.2]} 26...
Qxe6 {[%clk 0:01:13.9]} 27. fxg5 {[%clk 0:00:14.1]} 27... Rf8+ {[%clk
0:01:12.1]} 28. Kg1 {[%clk 0:00:14.4]} 28... Rxf1+ {[%clk 0:01:11.5]} 29. Kxf1
{[%clk 0:00:14.8]} 29... Qh3+ {[%clk 0:01:11.7]} 30. Ke1 {[%clk 0:00:12.5]}
30... Qh1+ {[%clk 0:01:11.3]} 31. Ke2 {[%clk 0:00:12.1]} 31... Qf3+ {[%clk
0:01:05.7]} 32. Ke1 {[%clk 0:00:12.6]} 32... Qxg3+ {[%clk 0:01:05.9]} 33. Kd1
{[%clk 0:00:13.1]} 33... Qg1+ {[%clk 0:01:04.9]} 34. Kc2 {[%clk 0:00:12.2]}
34... Qg2 {[%clk 0:01:03.3]} 35. a4 {[%clk 0:00:04.5]} 35... Nc7 {[%clk
0:01:02.8]} 36. a5 {[%clk 0:00:03.4]} 36... Ne6 {[%clk 0:01:01.8]} 0-1

[Event "Late-Titled-Tuesday-Blitz-October-24-2023"]
[Site "Chess.com"]
[Date "2023.10.24"]
[Round "5"]
[White "Chessbard1972"]
[Black "Hoshka"]
[Result "1-0"]
[WhiteElo "2351"]
[BlackElo "2064"]
[TimeControl "180+1"]
[EndTime "14:55:13 PDT"]
[Termination "Chessbard1972 won on time"]

1. d4 {[%clk 0:03:00.9]} 1... d5 {[%clk 0:02:59.4]} 2. c4 {[%clk 0:03:00]} 2...
dxc4 {[%clk 0:02:59.3]} 3. e4 {[%clk 0:02:59.4]} 3... b5 {[%clk 0:02:56.2]} 4.
a4 {[%clk 0:02:56.1]} 4... c6 {[%clk 0:02:55.9]} 5. Nf3 {[%clk 0:02:52]} 5... e6
{[%clk 0:02:51.2]} 6. Be2 {[%clk 0:02:46]} 6... Nf6 {[%clk 0:02:42.5]} 7. Nbd2
{[%clk 0:02:41.9]} 7... Bb4 {[%clk 0:02:39.4]} 8. e5 {[%clk 0:02:38.9]} 8... Ne4
{[%clk 0:02:30.1]} 9. O-O {[%clk 0:02:37.7]} 9... Nxd2 {[%clk 0:02:29.2]} 10.
Bxd2 {[%clk 0:02:36.7]} 10... Bxd2 {[%clk 0:02:28.1]} 11. Qxd2 {[%clk
0:02:37.3]} 11... O-O {[%clk 0:02:25.2]} 12. Ng5 {[%clk 0:02:33.7]} 12... h6
{[%clk 0:01:56.3]} 13. Ne4 {[%clk 0:02:32]} 13... Nd7 {[%clk 0:01:53.3]} 14. Ra3
{[%clk 0:02:27.3]} 14... f5 {[%clk 0:01:37.9]} 15. Nd6 {[%clk 0:02:23.8]} 15...
Nb6 {[%clk 0:01:32.2]} 16. Bf3 {[%clk 0:02:16.5]} 16... Nd5 {[%clk 0:01:30.4]}
17. axb5 {[%clk 0:02:13.1]} 17... cxb5 {[%clk 0:01:29.7]} 18. Nxb5 {[%clk
0:02:13.3]} 18... Bb7 {[%clk 0:01:21.8]} 19. Nd6 {[%clk 0:02:10.1]} 19... Bc6
{[%clk 0:01:20.9]} 20. Nxc4 {[%clk 0:02:08.9]} 20... Bb5 {[%clk 0:01:20.1]} 21.
Rc1 {[%clk 0:02:07.9]} 21... Bxc4 {[%clk 0:01:13.7]} 22. Rxc4 {[%clk 0:02:07.1]}
22... g5 {[%clk 0:01:02.8]} 23. h3 {[%clk 0:02:04.3]} 23... Qd7 {[%clk
0:00:54.4]} 24. Ra1 {[%clk 0:01:57.7]} 24... Rab8 {[%clk 0:00:35.8]} 25. Rca4
{[%clk 0:01:53.3]} 25... Rb7 {[%clk 0:00:30.9]} 26. b4 {[%clk 0:01:32.6]} 26...
Rfb8 {[%clk 0:00:30.2]} 27. Bxd5 {[%clk 0:01:26.5]} 27... Qxd5 {[%clk
0:00:29.7]} 28. h4 {[%clk 0:01:24.3]} 28... f4 {[%clk 0:00:25.6]} 29. hxg5
{[%clk 0:01:21.7]} 29... hxg5 {[%clk 0:00:25.3]} 30. Qd3 {[%clk 0:01:20.4]}
30... Kg7 {[%clk 0:00:24.6]} 31. Rxa7 {[%clk 0:01:18.2]} 31... Kh6 {[%clk
0:00:20.4]} 32. Rxb7 {[%clk 0:01:17]} 32... Rxb7 {[%clk 0:00:20.5]} 33. Rb1
{[%clk 0:01:16.5]} 33... Rb5 {[%clk 0:00:17.7]} 34. Qh3+ {[%clk 0:01:12.5]}
34... Kg6 {[%clk 0:00:16.3]} 35. Qd3+ {[%clk 0:01:11.6]} 35... Kh6 {[%clk
0:00:14.7]} 36. f3 {[%clk 0:01:11.7]} 36... Qb7 {[%clk 0:00:11.1]} 37. Kf2
{[%clk 0:01:09.2]} 37... Rxb4 {[%clk 0:00:09.6]} 38. Rh1+ {[%clk 0:01:09]} 38...
Kg7 {[%clk 0:00:02.8]} 39. Rh7+ {[%clk 0:01:08.6]} 39... Kf8 {[%clk 0:00:02.5]}
40. Rxb7 {[%clk 0:01:08.5]} 40... Rxb7 {[%clk 0:00:02.5]} 41. Qg6 {[%clk
0:01:08.4]} 41... Rg7 {[%clk 0:00:01.6]} 42. Qxe6 {[%clk 0:01:07.7]} 1-0

[Event "Late-Titled-Tuesday-Blitz-October-24-2023"]
[Site "Chess.com"]
[Date "2023.10.24"]
[Round "5"]
[White "IgorBjelobrk"]
[Black "Hirna2005"]
[Result "1-0"]
[WhiteElo "2586"]
[BlackElo "2321"]
[TimeControl "180+1"]
[EndTime "14:55:25 PDT"]
[Termination "IgorBjelobrk won by resignation"]

1. d4 {[%clk 0:02:52.1]} 1... g6 {[%clk 0:03:00.6]} 2. e4 {[%clk 0:02:51.7]}
2... Bg7 {[%clk 0:03:01.3]} 3. Nf3 {[%clk 0:02:51.9]} 3... d6 {[%clk 0:03:01.9]}
4. Nbd2 {[%clk 0:02:50.3]} 4... Nd7 {[%clk 0:03:00.1]} 5. c3 {[%clk 0:02:49.9]}
5... c5 {[%clk 0:03:00.2]} 6. Bd3 {[%clk 0:02:48.3]} 6... b6 {[%clk 0:02:59.4]}
7. O-O {[%clk 0:02:48.4]} 7... Bb7 {[%clk 0:02:59.7]} 8. Re1 {[%clk 0:02:48.6]}
8... Ngf6 {[%clk 0:02:58.7]} 9. a4 {[%clk 0:02:48.4]} 9... O-O {[%clk
0:02:57.6]} 10. h3 {[%clk 0:02:46.6]} 10... cxd4 {[%clk 0:02:46.4]} 11. cxd4
{[%clk 0:02:46]} 11... e5 {[%clk 0:02:46.7]} 12. d5 {[%clk 0:02:43.7]} 12... Nc5
{[%clk 0:02:42.4]} 13. Bc2 {[%clk 0:02:39.7]} 13... a5 {[%clk 0:02:41.8]} 14. b3
{[%clk 0:02:33.4]} 14... Ba6 {[%clk 0:02:40.8]} 15. Ba3 {[%clk 0:02:30.4]} 15...
Rc8 {[%clk 0:02:27.2]} 16. Nc4 {[%clk 0:02:22.6]} 16... Bxc4 {[%clk 0:02:22.1]}
17. bxc4 {[%clk 0:02:23.5]} 17... Nfd7 {[%clk 0:02:18.3]} 18. Rb1 {[%clk
0:02:22.6]} 18... f5 {[%clk 0:02:08.1]} 19. Rb5 {[%clk 0:02:20.8]} 19... Qf6
{[%clk 0:01:58.5]} 20. Re2 {[%clk 0:01:33.8]} 20... Bh6 {[%clk 0:01:55.6]} 21.
Nh2 {[%clk 0:01:19]} 21... Rf7 {[%clk 0:01:50.8]} 22. Nf3 {[%clk 0:01:06]} 22...
f4 {[%clk 0:01:27.9]} 23. Qb1 {[%clk 0:00:54.7]} 23... Bf8 {[%clk 0:01:24.1]}
24. Bd1 {[%clk 0:00:54.2]} 24... g5 {[%clk 0:01:21.9]} 25. Reb2 {[%clk 0:00:53]}
25... h5 {[%clk 0:01:18.5]} 26. Nh2 {[%clk 0:00:52.8]} 26... Qg6 {[%clk
0:01:14.1]} 27. Bxc5 {[%clk 0:00:51.3]} 27... Rxc5 {[%clk 0:01:12.9]} 28. Rxc5
{[%clk 0:00:45.8]} 28... dxc5 {[%clk 0:01:11.7]} 29. Bf3 {[%clk 0:00:39.5]}
29... Rg7 {[%clk 0:01:02.3]} 30. Qd1 {[%clk 0:00:38.5]} 30... Rh7 {[%clk
0:00:57.8]} 31. d6 {[%clk 0:00:36.7]} 31... Rh6 {[%clk 0:00:45.4]} 32. Rd2
{[%clk 0:00:35.5]} 32... Kf7 {[%clk 0:00:43.2]} 33. Rd5 {[%clk 0:00:35.2]} 33...
Ke8 {[%clk 0:00:42.3]} 34. Kf1 {[%clk 0:00:30.5]} 34... Kd8 {[%clk 0:00:40.7]}
35. Ke1 {[%clk 0:00:30.6]} 35... Bxd6 {[%clk 0:00:38]} 36. Bxh5 {[%clk
0:00:27.2]} 36... Qf6 {[%clk 0:00:32.5]} 37. Ng4 {[%clk 0:00:25]} 37... Qf8
{[%clk 0:00:27.9]} 38. Nxh6 {[%clk 0:00:24.8]} 38... Qxh6 {[%clk 0:00:27.3]} 39.
Rxd6 {[%clk 0:00:25.1]} 39... Qg7 {[%clk 0:00:27.8]} 40. Bg4 {[%clk 0:00:24.9]}
1-0

[Event "Late-Titled-Tuesday-Blitz-October-24-2023"]
[Site "Chess.com"]
[Date "2023.10.24"]
[Round "5"]
[White "SanchezKelvin"]
[Black "cassoulet"]
[Result "0-1"]
[WhiteElo "2564"]
[BlackElo "2794"]
[TimeControl "180+1"]
[EndTime "14:55:32 PDT"]
[Termination "cassoulet won by checkmate"]

1. e4 {[%clk 0:02:58.9]} 1... c5 {[%clk 0:02:58.5]} 2. Nf3 {[%clk 0:02:53.8]}
2... e6 {[%clk 0:02:58.8]} 3. d4 {[%clk 0:02:52.8]} 3... cxd4 {[%clk 0:02:59.7]}
4. Nxd4 {[%clk 0:02:53]} 4... Nf6 {[%clk 0:03:00.3]} 5. Nc3 {[%clk 0:02:52.6]}
5... Nc6 {[%clk 0:03:00.4]} 6. Nxc6 {[%clk 0:02:48.8]} 6... bxc6 {[%clk
0:03:01.3]} 7. e5 {[%clk 0:02:01.7]} 7... Nd5 {[%clk 0:03:00.9]} 8. Ne4 {[%clk
0:01:59.8]} 8... Bb7 {[%clk 0:02:59.7]} 9. c4 {[%clk 0:01:53.2]} 9... Qa5+
{[%clk 0:02:54.7]} 10. Bd2 {[%clk 0:01:51.3]} 10... Nb4 {[%clk 0:02:55]} 11. f4
{[%clk 0:01:47.4]} 11... c5 {[%clk 0:02:55.1]} 12. Nf2 {[%clk 0:01:35.4]} 12...
Qb6 {[%clk 0:02:52.1]} 13. Bc3 {[%clk 0:01:35.2]} 13... Rd8 {[%clk 0:02:45.5]}
14. a3 {[%clk 0:01:23.7]} 14... Nc6 {[%clk 0:02:41.4]} 15. Qa4 {[%clk
0:01:22.5]} 15... Be7 {[%clk 0:02:34.6]} 16. Qb5 {[%clk 0:01:18.9]} 16... O-O
{[%clk 0:02:29.9]} 17. Qxb6 {[%clk 0:01:18.5]} 17... axb6 {[%clk 0:02:30.8]} 18.
Be2 {[%clk 0:01:17.6]} 18... Nd4 {[%clk 0:02:24.1]} 19. Bxd4 {[%clk 0:01:14.3]}
19... cxd4 {[%clk 0:02:25]} 20. O-O {[%clk 0:01:13.8]} 20... d6 {[%clk
0:02:23.5]} 21. Nd3 {[%clk 0:01:06.9]} 21... d5 {[%clk 0:02:21]} 22. cxd5 {[%clk
0:01:03.8]} 22... Bxd5 {[%clk 0:02:19.5]} 23. Rfc1 {[%clk 0:01:01.1]} 23... Rc8
{[%clk 0:02:18.6]} 24. Kf2 {[%clk 0:01:00.5]} 24... g5 {[%clk 0:02:15.7]} 25. g3
{[%clk 0:00:54.8]} 25... f6 {[%clk 0:02:15.1]} 26. Rxc8 {[%clk 0:00:48.8]} 26...
Rxc8 {[%clk 0:02:14.5]} 27. exf6 {[%clk 0:00:49.3]} 27... Bxf6 {[%clk
0:02:15.4]} 28. fxg5 {[%clk 0:00:46]} 28... Bxg5 {[%clk 0:02:16.3]} 29. h4
{[%clk 0:00:44.9]} 29... Be3+ {[%clk 0:02:16.2]} 30. Ke1 {[%clk 0:00:41]} 30...
Rc2 {[%clk 0:02:04.6]} 31. Rd1 {[%clk 0:00:29.8]} 31... Kg7 {[%clk 0:01:58.3]}
32. Nb4 {[%clk 0:00:19]} 32... Rxb2 {[%clk 0:01:52.9]} 33. Nxd5 {[%clk 0:00:19]}
33... exd5 {[%clk 0:01:53.8]} 34. a4 {[%clk 0:00:17.5]} 34... Ra2 {[%clk
0:01:49.3]} 35. Rb1 {[%clk 0:00:16.8]} 35... d3 {[%clk 0:01:19.7]} 36. Bxd3
{[%clk 0:00:15.2]} 36... Rxa4 {[%clk 0:01:19.8]} 37. Ke2 {[%clk 0:00:15.6]}
37... Bc5 {[%clk 0:01:19.5]} 38. Rb2 {[%clk 0:00:14]} 38... h5 {[%clk
0:01:19.1]} 39. Kf1 {[%clk 0:00:13]} 39... Ra3 {[%clk 0:01:18.9]} 40. Rd2 {[%clk
0:00:12]} 40... Be3 {[%clk 0:01:16.6]} 41. Rd1 {[%clk 0:00:12.5]} 41... d4
{[%clk 0:01:16.6]} 42. Kg2 {[%clk 0:00:12.7]} 42... Ra2+ {[%clk 0:01:16.2]} 43.
Kf3 {[%clk 0:00:12.3]} 43... Rb2 {[%clk 0:01:14.6]} 44. Be2 {[%clk 0:00:11.7]}
44... Kf6 {[%clk 0:01:14.5]} 45. Ra1 {[%clk 0:00:11.2]} 45... Ke5 {[%clk
0:01:12.8]} 46. Ra8 {[%clk 0:00:11]} 46... b5 {[%clk 0:01:08.5]} 47. Re8+ {[%clk
0:00:10.6]} 47... Kd6 {[%clk 0:01:07.9]} 48. Rd8+ {[%clk 0:00:10.4]} 48... Kc5
{[%clk 0:01:06.9]} 49. Rh8 {[%clk 0:00:09.4]} 49... b4 {[%clk 0:01:03.2]} 50.
Rxh5+ {[%clk 0:00:10.3]} 50... Kc6 {[%clk 0:01:03.1]} 51. Bb5+ {[%clk
0:00:09.8]} 51... Kd6 {[%clk 0:01:02.6]} 52. Bd3 {[%clk 0:00:10.1]} 52... b3
{[%clk 0:01:01.4]} 53. Rb5 {[%clk 0:00:09.5]} 53... Rf2+ {[%clk 0:01:01.2]} 54.
Ke4 {[%clk 0:00:10.1]} 54... b2 {[%clk 0:01:02.1]} 55. g4 {[%clk 0:00:10.1]}
55... Rf4# {[%clk 0:01:01]} 0-1

[Event "Late-Titled-Tuesday-Blitz-October-24-2023"]
[Site "Chess.com"]
[Date "2023.10.24"]
[Round "5"]
[White "biostatistician"]
[Black "giomar27"]
[Result "1-0"]
[WhiteElo "2593"]
[BlackElo "2381"]
[TimeControl "180+1"]
[EndTime "14:55:33 PDT"]
[Termination "biostatistician won by resignation"]

1. d4 {[%clk 0:03:00]} 1... Nf6 {[%clk 0:02:59.7]} 2. Nf3 {[%clk 0:03:00.9]}
2... c5 {[%clk 0:03:00.2]} 3. d5 {[%clk 0:03:00.9]} 3... b5 {[%clk 0:03:00.4]}
4. c4 {[%clk 0:03:01.8]} 4... g6 {[%clk 0:03:00.2]} 5. cxb5 {[%clk 0:03:00.4]}
5... a6 {[%clk 0:02:59.8]} 6. b6 {[%clk 0:03:00.4]} 6... d6 {[%clk 0:03:00]} 7.
Nc3 {[%clk 0:02:59.7]} 7... Nbd7 {[%clk 0:03:00.5]} 8. e4 {[%clk 0:03:00.1]}
8... Rb8 {[%clk 0:03:00.9]} 9. Nd2 {[%clk 0:02:59.6]} 9... Bg7 {[%clk
0:02:59.9]} 10. a4 {[%clk 0:02:58.9]} 10... Rxb6 {[%clk 0:02:59.6]} 11. a5
{[%clk 0:02:58.9]} 11... Rb4 {[%clk 0:02:59.8]} 12. Nc4 {[%clk 0:02:50.5]} 12...
O-O {[%clk 0:02:57.5]} 13. Bd3 {[%clk 0:02:50.3]} 13... Ne8 {[%clk 0:02:44.2]}
14. O-O {[%clk 0:02:47.3]} 14... Nc7 {[%clk 0:02:44.3]} 15. Na4 {[%clk
0:02:41.1]} 15... Ne5 {[%clk 0:02:27.8]} 16. Nxe5 {[%clk 0:02:36.7]} 16... Bxe5
{[%clk 0:02:28.5]} 17. f4 {[%clk 0:02:13.9]} 17... Bd4+ {[%clk 0:02:28.1]} 18.
Kh1 {[%clk 0:02:13.9]} 18... f5 {[%clk 0:02:28.8]} 19. Nb6 {[%clk 0:02:06.1]}
19... fxe4 {[%clk 0:02:17.3]} 20. Bxe4 {[%clk 0:02:07]} 20... Bxb2 {[%clk
0:02:09.1]} 21. Bxb2 {[%clk 0:02:04.2]} 21... Rxb2 {[%clk 0:02:10]} 22. Qd3
{[%clk 0:01:50.6]} 22... Bf5 {[%clk 0:02:01.6]} 23. Rae1 {[%clk 0:01:47.2]}
23... Rb4 {[%clk 0:01:57.7]} 24. Bxf5 {[%clk 0:01:46.8]} 24... Rxf5 {[%clk
0:01:57.2]} 25. Re4 {[%clk 0:01:44]} 25... Qf8 {[%clk 0:01:32.6]} 26. Rxb4
{[%clk 0:01:40.5]} 26... cxb4 {[%clk 0:01:33.5]} 27. Qc4 {[%clk 0:01:39.5]}
27... Nb5 {[%clk 0:01:21]} 28. Qxb4 {[%clk 0:01:37.6]} 28... g5 {[%clk
0:01:21.5]} 29. g3 {[%clk 0:01:32.2]} 29... gxf4 {[%clk 0:01:16]} 30. Rxf4
{[%clk 0:01:33.1]} 30... Rxf4 {[%clk 0:01:15.2]} 31. Qxf4 {[%clk 0:01:34]} 31...
Qxf4 {[%clk 0:01:14.3]} 32. gxf4 {[%clk 0:01:34.9]} 32... Na3 {[%clk 0:01:07.1]}
33. Kg2 {[%clk 0:01:32.5]} 33... Kf7 {[%clk 0:01:01.4]} 34. Kf3 {[%clk
0:01:31.9]} 34... Kf6 {[%clk 0:01:01.4]} 35. Ke4 {[%clk 0:01:23.7]} 35... Nc2
{[%clk 0:01:00.7]} 36. Na8 {[%clk 0:01:11.1]} 36... e6 {[%clk 0:00:48.3]} 37.
dxe6 {[%clk 0:01:02.4]} 37... Kxe6 {[%clk 0:00:41.4]} 38. Nc7+ {[%clk
0:01:02.6]} 38... Kd7 {[%clk 0:00:41.7]} 39. Nxa6 {[%clk 0:01:03.5]} 39... Kc8
{[%clk 0:00:40.2]} 40. Kd5 {[%clk 0:00:54.1]} 40... Kb7 {[%clk 0:00:40.1]} 41.
Kxd6 {[%clk 0:00:52.5]} 41... Kxa6 {[%clk 0:00:32.2]} 42. f5 {[%clk 0:00:52.7]}
42... Ne3 {[%clk 0:00:30.8]} 43. f6 {[%clk 0:00:51.8]} 43... Nf5+ {[%clk
0:00:31.1]} 44. Ke6 {[%clk 0:00:30.5]} 44... Nh6 {[%clk 0:00:31.3]} 45. f7
{[%clk 0:00:31]} 45... Nxf7 {[%clk 0:00:31.5]} 46. Kxf7 {[%clk 0:00:31.9]} 46...
h5 {[%clk 0:00:31.9]} 47. h4 {[%clk 0:00:30.9]} 47... Kxa5 {[%clk 0:00:32.3]}
48. Kg6 {[%clk 0:00:31.4]} 48... Kb6 {[%clk 0:00:33.2]} 49. Kxh5 {[%clk
0:00:31.9]} 49... Kc7 {[%clk 0:00:34.1]} 50. Kg6 {[%clk 0:00:32.5]} 50... Kd7
{[%clk 0:00:35]} 51. Kf7 {[%clk 0:00:32.7]} 1-0

[Event "Late-Titled-Tuesday-Blitz-October-24-2023"]
[Site "Chess.com"]
[Date "2023.10.24"]
[Round "5"]
[White "FedaMaster"]
[Black "Zhigalko_Sergei"]
[Result "0-1"]
[WhiteElo "2666"]
[BlackElo "2955"]
[TimeControl "180+1"]
[EndTime "14:55:34 PDT"]
[Termination "Zhigalko_Sergei won on time"]

1. e4 {[%clk 0:03:00.9]} 1... c5 {[%clk 0:03:00.2]} 2. d4 {[%clk 0:02:53.9]}
2... cxd4 {[%clk 0:03:00.1]} 3. c3 {[%clk 0:02:54.7]} 3... Nf6 {[%clk
0:03:00.4]} 4. e5 {[%clk 0:02:54.6]} 4... Nd5 {[%clk 0:03:00.7]} 5. Nf3 {[%clk
0:02:54.5]} 5... Nc6 {[%clk 0:03:00.7]} 6. Bc4 {[%clk 0:02:54.6]} 6... Nb6
{[%clk 0:02:59.6]} 7. Bb3 {[%clk 0:02:55.2]} 7... g6 {[%clk 0:02:59.9]} 8. cxd4
{[%clk 0:02:54.1]} 8... Bg7 {[%clk 0:03:00.1]} 9. h3 {[%clk 0:02:47.5]} 9... O-O
{[%clk 0:02:59.7]} 10. Nc3 {[%clk 0:02:41.9]} 10... d6 {[%clk 0:02:56.4]} 11.
Bf4 {[%clk 0:02:34.2]} 11... Bf5 {[%clk 0:02:46.5]} 12. O-O {[%clk 0:02:23.2]}
12... Rc8 {[%clk 0:02:41.6]} 13. exd6 {[%clk 0:02:12]} 13... exd6 {[%clk
0:02:37]} 14. Nb5 {[%clk 0:01:57.9]} 14... Be4 {[%clk 0:02:37.2]} 15. Bxd6
{[%clk 0:01:40.4]} 15... Re8 {[%clk 0:02:33.6]} 16. Ne5 {[%clk 0:01:39.7]} 16...
Bd5 {[%clk 0:01:05.9]} 17. Bxd5 {[%clk 0:01:09.7]} 17... Nxd5 {[%clk 0:01:05.7]}
18. Qb3 {[%clk 0:00:51.1]} 18... Nxd4 {[%clk 0:00:59.1]} 19. Nxd4 {[%clk
0:00:37.2]} 19... Qxd6 {[%clk 0:00:56.7]} 20. Nef3 {[%clk 0:00:31.8]} 20... Nf4
{[%clk 0:00:52.8]} 21. Rfd1 {[%clk 0:00:27.9]} 21... Qc5 {[%clk 0:00:35.4]} 22.
Rd2 {[%clk 0:00:14.8]} 22... Bxd4 {[%clk 0:00:27.8]} 23. Nxd4 {[%clk 0:00:13.3]}
23... Qg5 {[%clk 0:00:27.9]} 24. Qf3 {[%clk 0:00:05.4]} 24... Nxh3+ {[%clk
0:00:26.4]} 25. Qxh3 {[%clk 0:00:03.3]} 25... Qxd2 {[%clk 0:00:27.3]} 26. Nf3
{[%clk 0:00:03]} 26... Qxb2 {[%clk 0:00:26.3]} 27. Rf1 {[%clk 0:00:02.9]} 27...
Rc1 {[%clk 0:00:24.8]} 28. Rxc1 {[%clk 0:00:03.2]} 28... Qxc1+ {[%clk
0:00:24.8]} 29. Kh2 {[%clk 0:00:04.1]} 29... Qc7+ {[%clk 0:00:22.9]} 30. g3
{[%clk 0:00:03.9]} 30... Qc5 {[%clk 0:00:21.8]} 31. Kg2 {[%clk 0:00:02.7]} 31...
Re2 {[%clk 0:00:21.1]} 0-1